fUSD/lending_fUSD_20260625
["ID","MTS","AMOUNT","RATE_DAILY","PERIOD"]
[426441794,1782395441000,-888.0,0.00016584,2]
[426441792,1782395441000,-886.02,0.00016474,2]
[426441791,1782395441000,-502.49,0.00016474,2]
[426441795,1782395441000,-890.0,0.00016584,2]
[426441793,1782395441000,-628.02,0.00016479,2]
[426441796,1782395441000,-730.92,0.00016853,2]
[426441797,1782395441000,-218.45409808,0.000169,2]
[426441799,1782395441000,-396.28,0.00017452,2]
[426441831,1782395441000,-151.0,0.00019,2]
[426441802,1782395441000,-403.0,0.000177,5]
[426441800,1782395441000,-540.82864469,0.00017522,2]
[426441801,1782395441000,-167.18,0.00017561,2]
[426441804,1782395441000,-1258.54247132,0.00018,2]
[426441810,1782395441000,-1258.54247132,0.000184,2]
[426441803,1782395441000,-2168.23,0.00017862,2]
[426441811,1782395441000,-231.56754967,0.000184,2]
[426441833,1782395441000,-151.0,0.00019,2]
[426441821,1782395441000,-218.45409808,0.000189,2]
[426441842,1782395441000,-151.0,0.00019,2]
[426441868,1782395441000,-1055.0,0.0002,2]
[426441870,1782395441000,-157.0,0.0002,2]
[426441869,1782395441000,-157.0,0.0002,2]
[426441867,1782395441000,-917.0,0.0002,2]
[426441871,1782395441000,-540.82864469,0.00020144,2]
[426441877,1782395441000,-150.0,0.00020239,2]
[426441885,1782395441000,-730.92,0.00020598,2]
[426441887,1782395441000,-2000.0,0.000207,2]
[426441886,1782395441000,-214.29155801,0.00020616,10]
[426441879,1782395441000,-221.0,0.00020239,2]
[426441884,1782395441000,-160.18097796,0.00020441,2]
[426441880,1782395441000,-209.947,0.00020239,2]
[426441878,1782395441000,-250.0,0.00020239,2]
[426441882,1782395441000,-588.55619125,0.00020281,2]
[426441881,1782395441000,-150.758,0.00020239,2]
[426441890,1782395441000,-599.0,0.00021,2]
[426441889,1782395441000,-498.08024938,0.00020919,2]
[426441891,1782395441000,-201.0,0.00021,2]
[426441899,1782395441000,-157.0,0.00021,2]
[426441893,1782395441000,-954.0,0.00021,2]
[426441892,1782395441000,-246.0,0.00021,2]
[426441896,1782395441000,-564.0,0.00021,2]
[426441897,1782395441000,-917.0,0.00021,2]
[426441894,1782395441000,-394.0,0.00021,2]
[426441898,1782395441000,-1055.0,0.00021,2]
[426441840,1782395441000,-151.0,0.00019,2]
[426441895,1782395441000,-270.0,0.00021,2]
[426441866,1782395441000,-564.0,0.0002,2]
[426441865,1782395441000,-270.0,0.0002,2]
[426441888,1782395441000,-218.45409808,0.000209,2]
[426441876,1782395441000,-383.0,0.00020239,2]
[426441841,1782395441000,-151.0,0.00019,2]
[426441864,1782395441000,-394.0,0.0002,2]
[426441850,1782395441000,-588.55619125,0.00019472,2]
[426441839,1782395441000,-162.637803,0.00019,2]
[426441845,1782395441000,-172.88797553,0.00019178,2]
[426441844,1782395441000,-500.0,0.00019178,2]
[426441846,1782395441000,-151.0,0.00019178,2]
[426441848,1782395441000,-228.48,0.000192,9]
[426441849,1782395441000,-961.66,0.00019355,7]
[426441847,1782395441000,-151.0,0.00019178,2]
[426441851,1782395441000,-2000.0,0.000196,2]
[426441853,1782395441000,-214.29155801,0.00019794,10]
[426441854,1782395441000,-502.49,0.00019968,2]
[426441852,1782395441000,-1166.0,0.00019656,2]
[426441843,1782395441000,-500.0,0.00019178,2]
[426441856,1782395441000,-2029.60684713,0.0002,2]
[426441862,1782395441000,-246.0,0.0002,2]
[426441873,1782395441000,-165.813,0.00020239,2]
[426441874,1782395441000,-1361.0,0.00020239,2]
[426441872,1782395441000,-3562.0,0.00020239,2]
[426441857,1782395441000,-160.59080574,0.0002,2]
[426441858,1782395441000,-599.0,0.0002,2]
[426441875,1782395441000,-1230.0,0.00020239,2]
[426441855,1782395441000,-886.02,0.00019968,2]
[426441861,1782395441000,-450.0,0.0002,2]
[426441859,1782395441000,-400.0,0.0002,2]
[426441860,1782395441000,-201.0,0.0002,2]
[426441863,1782395441000,-954.0,0.0002,2]
[426441984,1782395442000,-151.0,0.00021808,2]
[426441980,1782395442000,-151.0,0.00021808,2]
[426441978,1782395442000,-151.0,0.00021808,2]
[426441976,1782395442000,-151.0,0.00021808,2]
[426441962,1782395442000,-151.0,0.00021808,2]
[426441972,1782395442000,-151.0,0.00021808,2]
[426441966,1782395442000,-151.0,0.00021808,2]
[426441968,1782395442000,-151.0,0.00021808,2]
[426441982,1782395442000,-151.0,0.00021808,2]
[426441970,1782395442000,-1105.01664346,0.00021808,2]
[426441974,1782395442000,-151.0,0.00021808,2]
[426441986,1782395442000,-588.55619125,0.000219,2]
[426441998,1782395442000,-246.0,0.00022,2]
[426441988,1782395442000,-5000.0,0.00021918,2]
[426441992,1782395442000,-599.0,0.00022,2]
[426441997,1782395442000,-201.0,0.00022,2]
[426441999,1782395442000,-954.0,0.00022,2]
[426441990,1782395442000,-288757.77543616,0.00022,4]
[426442001,1782395442000,-394.0,0.00022,2]
[426442003,1782395442000,-500.0,0.00022,2]
[426442024,1782395442000,-161.16017518,0.00022356,2]
[426442018,1782395442000,-161.16017518,0.00022082,2]
[426442006,1782395442000,-270.0,0.00022,2]
[426442008,1782395442000,-564.0,0.00022,2]
[426442012,1782395442000,-1055.0,0.00022,2]
[426441958,1782395442000,-151.0,0.00021808,2]
[426441995,1782395442000,-450.0,0.00022,2]
[426441960,1782395442000,-151.0,0.00021808,2]
[426441900,1782395442000,-157.0,0.00021,2]
[426441956,1782395442000,-151.0,0.00021808,2]
[426442014,1782395442000,-167.0,0.00022,2]
[426441902,1782395442000,-588.55619125,0.00021091,2]
[426441906,1782395442000,-540.82864469,0.00021456,2]
[426441908,1782395442000,-231.777245,0.0002156,2]
[426441920,1782395442000,-151.0,0.00021808,2]
[426441924,1782395442000,-151.0,0.00021808,2]
[426441914,1782395442000,-2000.0,0.000218,2]
[426441926,1782395442000,-151.0,0.00021808,2]
[426441916,1782395442000,-151.0,0.00021808,2]
[426441912,1782395442000,-340.276642,0.0002156,2]
[426441918,1782395442000,-161.16017518,0.00021808,2]
[426441910,1782395442000,-278.132694,0.0002156,2]
[426441922,1782395442000,-151.0,0.00021808,2]
[426441928,1782395442000,-151.0,0.00021808,2]
[426441938,1782395442000,-151.0,0.00021808,2]
[426441940,1782395442000,-1500.0,0.00021808,2]
[426441944,1782395442000,-151.0,0.00021808,2]
[426441942,1782395442000,-151.0,0.00021808,2]
[426441932,1782395442000,-151.0,0.00021808,2]
[426441930,1782395442000,-151.0,0.00021808,2]
[426441934,1782395442000,-151.0,0.00021808,2]
[426441946,1782395442000,-151.0,0.00021808,2]
[426441948,1782395442000,-173.59831884,0.00021808,2]
[426441936,1782395442000,-151.0,0.00021808,2]
[426441950,1782395442000,-151.0,0.00021808,2]
[426441952,1782395442000,-151.0,0.00021808,2]
[426441954,1782395442000,-151.0,0.00021808,2]
[426441964,1782395442000,-151.0,0.00021808,2]
[426442010,1782395442000,-917.0,0.00022,2]
[426442077,1782395442000,-917.0,0.00023,2]
[426442020,1782395442000,-2000.0,0.000222,2]
[426442089,1782395442000,-1230.0,0.00023239,2]
[426442085,1782395442000,-3562.0,0.00023239,2]
[426442096,1782395442000,-151.0,0.00023239,2]
[426442087,1782395442000,-1361.0,0.00023239,2]
[426442100,1782395442000,-151.0,0.00023239,2]
[426442081,1782395442000,-157.0,0.00023,2]
[426442102,1782395442000,-151.0,0.00023239,2]
[426442104,1782395442000,-151.0,0.00023239,2]
[426442106,1782395442000,-151.0,0.00023239,2]
[426442112,1782395442000,-151.0,0.00023239,2]
[426442114,1782395442000,-203.787076,0.00023239,2]
[426442118,1782395442000,-162.637803,0.00023239,2]
[426442110,1782395442000,-151.0,0.00023239,2]
[426442116,1782395442000,-151.0,0.00023239,2]
[426442120,1782395442000,-162.637803,0.00023239,2]
[426442108,1782395442000,-151.0,0.00023239,2]
[426442122,1782395442000,-162.637803,0.00023239,2]
[426442126,1782395442000,-151.0,0.00023239,2]
[426442124,1782395442000,-162.637803,0.00023239,2]
[426442128,1782395442000,-151.0,0.00023239,2]
[426442132,1782395442000,-151.0,0.00023239,2]
[426442136,1782395442000,-561.894255,0.00023239,2]
[426442134,1782395442000,-151.0,0.00023239,2]
[426442130,1782395442000,-151.0,0.00023239,2]
[426442138,1782395442000,-561.894255,0.00023239,2]
[426442142,1782395442000,-561.894255,0.00023239,2]
[426442016,1782395442000,-157.0,0.00022,2]
[426442094,1782395442000,-150.0,0.00023239,2]
[426442083,1782395442000,-161.16017518,0.00023178,2]
[426442140,1782395442000,-561.894255,0.00023239,2]
[426442092,1782395442000,-383.0,0.00023239,2]
[426442022,1782395442000,-527.59,0.00022218,2]
[426442026,1782395442000,-1500.0,0.00022356,2]
[426442036,1782395442000,-442.12,0.00022466,2]
[426442042,1782395442000,-808.72,0.00022466,2]
[426442044,1782395442000,-200.34,0.00022466,2]
[426442040,1782395442000,-999.75,0.00022466,2]
[426442038,1782395442000,-320.58,0.00022466,2]
[426442098,1782395442000,-151.0,0.00023239,2]
[426442032,1782395442000,-456.56713977,0.00022393,2]
[426442046,1782395442000,-730.92,0.00022471,2]
[426442048,1782395442000,-161.16017518,0.0002263,2]
[426442034,1782395442000,-451.24431856,0.000224,2]
[426442030,1782395442000,-492.8026271,0.00022393,2]
[426442028,1782395442000,-180.49301861,0.00022393,2]
[426442075,1782395442000,-564.0,0.00023,2]
[426442067,1782395442000,-954.0,0.00023,2]
[426442070,1782395442000,-270.0,0.00023,2]
[426442063,1782395442000,-201.0,0.00023,2]
[426442072,1782395442000,-271.38279087,0.00023,3]
[426442061,1782395442000,-599.0,0.00023,2]
[426442068,1782395442000,-394.0,0.00023,2]
[426442079,1782395442000,-1055.0,0.00023,2]
[426442057,1782395442000,-161.16017518,0.00022904,2]
[426442065,1782395442000,-246.0,0.00023,2]
[426442053,1782395442000,-218.45409808,0.000229,2]
[426442059,1782395442000,-1500.0,0.00022904,2]
[426442051,1782395442000,-540.82864469,0.00022767,2]
[426442055,1782395442000,-2000.0,0.000229,2]
[426442226,1782395443000,-259.18463514,0.00024658,7]
[426442224,1782395443000,-168.88011083,0.00024658,7]
[426442220,1782395443000,-164.52,0.00024658,2]
[426442216,1782395443000,-1500.0,0.00024548,2]
[426442206,1782395443000,-386.85,0.0002411,2]
[426442210,1782395443000,-874.79,0.0002411,2]
[426442204,1782395443000,-540.82864469,0.00024078,2]
[426442218,1782395443000,-163.12328499,0.00024657,2]
[426442214,1782395443000,-161.16017518,0.00024548,2]
[426442200,1782395443000,-917.0,0.00024,2]
[426442212,1782395443000,-161.16017518,0.00024274,2]
[426442228,1782395443000,-160.68020166,0.00024658,7]
[426442266,1782395443000,-159.696235,0.00024658,2]
[426442232,1782395443000,-153.2014125,0.00024658,7]
[426442236,1782395443000,-289.33921734,0.00024658,7]
[426442244,1782395443000,-151.0,0.00024658,2]
[426442234,1782395443000,-155.45821798,0.00024658,7]
[426442240,1782395443000,-150.0,0.00024658,7]
[426442242,1782395443000,-192.35127979,0.00024658,7]
[426442238,1782395443000,-166.9070422,0.00024658,7]
[426442246,1782395443000,-151.0,0.00024658,2]
[426442248,1782395443000,-151.0,0.00024658,2]
[426442250,1782395443000,-159.696235,0.00024658,2]
[426442263,1782395443000,-159.696235,0.00024658,2]
[426442261,1782395443000,-159.696235,0.00024658,2]
[426442222,1782395443000,-150.0,0.00024658,7]
[426442230,1782395443000,-223.90919513,0.00024658,7]
[426442202,1782395443000,-1055.0,0.00024,2]
[426442171,1782395443000,-208.43554868,0.00023702,2]
[426442187,1782395443000,-201.0,0.00024,2]
[426442268,1782395443000,-151.0,0.00024658,2]
[426442146,1782395443000,-150.0,0.00023288,2]
[426442149,1782395443000,-161.16017518,0.00023452,2]
[426442151,1782395443000,-1500.0,0.00023452,2]
[426442144,1782395443000,-151.0,0.00023239,2]
[426442153,1782395443000,-151.23754415,0.00023697,2]
[426442157,1782395443000,-182.90730325,0.00023702,2]
[426442161,1782395443000,-178.76964299,0.00023702,2]
[426442155,1782395443000,-185.50802112,0.00023697,2]
[426442159,1782395443000,-237.84588569,0.00023702,2]
[426442163,1782395443000,-226.93059716,0.00023702,2]
[426442165,1782395443000,-201.09087405,0.00023702,2]
[426442185,1782395443000,-500.0,0.00024,2]
[426442173,1782395443000,-182.477411,0.00023704,2]
[426442169,1782395443000,-198.71589098,0.00023702,2]
[426442167,1782395443000,-227.27750961,0.00023702,2]
[426442178,1782395443000,-161.16017518,0.00023726,2]
[426442190,1782395443000,-246.0,0.00024,2]
[426442198,1782395443000,-564.0,0.00024,2]
[426442192,1782395443000,-954.0,0.00024,2]
[426442196,1782395443000,-270.0,0.00024,2]
[426442194,1782395443000,-394.0,0.00024,2]
[426442180,1782395443000,-2068.0,0.000239,2]
[426442182,1782395443000,-1500.0,0.00024,2]
[426442183,1782395443000,-599.0,0.00024,2]
[426442181,1782395443000,-161.16017518,0.00024,2]
[426442175,1782395443000,-171.20228805,0.00023711,2]
[426442252,1782395443000,-159.696235,0.00024658,2]
[426442208,1782395443000,-280.51,0.0002411,2]
[426442256,1782395443000,-159.696235,0.00024658,2]
[426442326,1782395443000,-282.59822564,0.00025,2]
[426442327,1782395443000,-580.7724219,0.00025,2]
[426442322,1782395443000,-964.74623189,0.00025,2]
[426442328,1782395443000,-932.88279101,0.00025,2]
[426442331,1782395443000,-161.16017525,0.0002537,2]
[426442329,1782395443000,-1068.40283707,0.00025,2]
[426442334,1782395443000,-350.0,0.00025456,2]
[426442332,1782395443000,-540.82864469,0.00025389,2]
[426442330,1782395443000,-161.16017518,0.00025096,2]
[426442333,1782395443000,-2000.0,0.000254,2]
[426442338,1782395443000,-168.92,0.0002564,2]
[426442335,1782395443000,-2000.0,0.000255,2]
[426442337,1782395443000,-350.0,0.00025611,2]
[426442346,1782395443000,-201.07983396,0.00025796,2]
[426442343,1782395443000,-401.09934652,0.00025796,2]
[426442336,1782395443000,-200.0,0.00025563,2]
[426442341,1782395443000,-243.70122352,0.00025796,2]
[426442342,1782395443000,-217.3265159,0.00025796,2]
[426442339,1782395443000,-505.3,0.00025675,7]
[426442340,1782395443000,-308.75046222,0.00025796,2]
[426442344,1782395443000,-277.24712806,0.00025796,2]
[426442345,1782395443000,-453.71263245,0.00025796,2]
[426442347,1782395443000,-200.28152374,0.00025796,2]
[426442348,1782395443000,-381.46748596,0.00025796,2]
[426442349,1782395443000,-209.11123862,0.00025796,2]
[426442350,1782395443000,-229.27873098,0.00025796,2]
[426442351,1782395443000,-556.52406335,0.00025796,2]
[426442324,1782395443000,-401.45489804,0.00025,2]
[426442321,1782395443000,-246.5238928,0.00025,2]
[426442272,1782395443000,-1000.0,0.00024658,2]
[426442317,1782395443000,-342.4045761,0.00024971,2]
[426442312,1782395443000,-206.20286772,0.00024971,2]
[426442270,1782395443000,-167.614188,0.00024658,2]
[426442258,1782395443000,-159.696235,0.00024658,2]
[426442254,1782395443000,-159.696235,0.00024658,2]
[426442287,1782395443000,-371.01604223,0.00024957,2]
[426442285,1782395443000,-190.73374298,0.00024957,2]
[426442289,1782395443000,-365.8146065,0.00024962,2]
[426442296,1782395443000,-402.1817481,0.00024962,2]
[426442294,1782395443000,-453.86119432,0.00024962,2]
[426442274,1782395443000,-161.16017518,0.00024822,2]
[426442291,1782395443000,-475.69177137,0.00024962,2]
[426442276,1782395443000,-218.45409808,0.000249,2]
[426442298,1782395443000,-454.55501923,0.00024962,2]
[426442293,1782395443000,-357.53928598,0.00024962,2]
[426442280,1782395443000,-200.54967326,0.00024957,2]
[426442283,1782395443000,-302.4750883,0.00024957,2]
[426442352,1782395443000,-522253.97534132,0.000258,2]
[426442316,1782395443000,-192.43005069,0.00024971,2]
[426442310,1782395443000,-364.95482199,0.00024964,2]
[426442318,1782395443000,-603.83118614,0.00025,2]
[426442300,1782395443000,-397.43178196,0.00024962,2]
[426442319,1782395443000,-220.20718968,0.00025,2]
[426442314,1782395443000,-151.61665966,0.00024971,2]
[426442308,1782395443000,-171.85469268,0.00024964,2]
[426442306,1782395443000,-211.05628814,0.00024964,2]
[426442302,1782395443000,-416.87109736,0.00024962,2]
[426442278,1782395443000,-154.37523111,0.00024957,2]
[426442304,1782395443000,-236.57001889,0.00024962,2]
[426442427,1782395444000,-177.53114353,0.00025801,2]
[426442433,1782395444000,-182.71763444,0.00025804,2]
[426442431,1782395444000,-561.65860905,0.00025801,2]
[426442424,1782395444000,-473.14003778,0.00025801,2]
[426442429,1782395444000,-241.824005,0.00025801,2]
[426442414,1782395444000,-680.79179148,0.00025801,2]
[426442419,1782395444000,-596.14767294,0.00025801,2]
[426442423,1782395444000,-625.30664604,0.00025801,2]
[426442416,1782395444000,-603.27262215,0.00025801,2]
[426442410,1782395444000,-244.35875289,0.00025801,2]
[426442437,1782395444000,-343.70938536,0.00025804,2]
[426442420,1782395444000,-681.83252884,0.00025801,2]
[426442439,1782395444000,-236.73726067,0.00025804,2]
[426442466,1782395444000,-10218.61727431,0.00026,5]
[426442442,1782395444000,-547.43223299,0.00025804,2]
[426442444,1782395444000,-225.65906331,0.00025811,2]
[426442446,1782395444000,-412.40573545,0.00025811,2]
[426442448,1782395444000,-384.86010138,0.00025811,2]
[426442458,1782395444000,-513.60686416,0.00025811,2]
[426442456,1782395444000,-237.80693409,0.00025811,2]
[426442454,1782395444000,-226.98404352,0.00025811,2]
[426442452,1782395444000,-303.23331932,0.00025811,2]
[426442450,1782395444000,-233.65996833,0.00025811,2]
[426442460,1782395444000,-434.65329151,0.00025906,2]
[426442462,1782395444000,-4614.28156483,0.00026,2]
[426442464,1782395444000,-26999.74914691,0.00026,2]
[426442412,1782395444000,-214.9773431,0.00025801,2]
[426442435,1782395444000,-422.11257627,0.00025804,2]
[426442398,1782395444000,-561.894255,0.000258,2]
[426442362,1782395444000,-159.696235,0.000258,2]
[426442396,1782395444000,-561.894255,0.000258,2]
[426442469,1782395444000,-550.0,0.00026,2]
[426442354,1782395444000,-173.506628,0.000258,2]
[426442356,1782395444000,-151.0,0.000258,2]
[426442353,1782395444000,-151.0,0.000258,2]
[426442357,1782395444000,-151.0,0.000258,2]
[426442358,1782395444000,-151.0,0.000258,2]
[426442355,1782395444000,-157.645389,0.000258,2]
[426442360,1782395444000,-181.206408,0.000258,2]
[426442370,1782395444000,-151.0,0.000258,2]
[426442372,1782395444000,-151.0,0.000258,2]
[426442374,1782395444000,-162.637803,0.000258,2]
[426442359,1782395444000,-151.0,0.000258,2]
[426442376,1782395444000,-162.637803,0.000258,2]
[426442364,1782395444000,-159.696235,0.000258,2]
[426442366,1782395444000,-159.696235,0.000258,2]
[426442381,1782395444000,-162.637803,0.000258,2]
[426442368,1782395444000,-159.696235,0.000258,2]
[426442379,1782395444000,-162.637803,0.000258,2]
[426442387,1782395444000,-151.0,0.000258,2]
[426442389,1782395444000,-151.0,0.000258,2]
[426442393,1782395444000,-561.894255,0.000258,2]
[426442391,1782395444000,-151.0,0.000258,2]
[426442406,1782395444000,-713.53765706,0.00025801,2]
[426442404,1782395444000,-548.72190976,0.00025801,2]
[426442385,1782395444000,-151.0,0.000258,2]
[426442400,1782395444000,-561.894255,0.000258,2]
[426442402,1782395444000,-151.0,0.000258,2]
[426442408,1782395444000,-536.30892897,0.00025801,2]
[426442471,1782395444000,-276.32,0.00026027,7]
[426442383,1782395444000,-151.0,0.000258,2]
[426442475,1782395444000,-150.0,0.00026126,5]
[426442509,1782395444000,-347.86392188,0.00026361,2]
[426442510,1782395444000,-225.45705522,0.00026361,2]
[426442508,1782395444000,-297.17646819,0.00026361,2]
[426442506,1782395444000,-269.64533584,0.00026361,2]
[426442512,1782395444000,-293.38024879,0.00026361,2]
[426442518,1782395444000,-907.72238864,0.00026361,2]
[426442511,1782395444000,-429.95468619,0.00026361,2]
[426442514,1782395444000,-220.87614427,0.00026361,2]
[426442513,1782395444000,-207.38344849,0.00026361,2]
[426442516,1782395444000,-201.58988695,0.00026361,2]
[426442515,1782395444000,-352.67459047,0.00026361,2]
[426442520,1782395444000,-804.3634962,0.00026361,2]
[426442521,1782395444000,-909.11003846,0.00026361,2]
[426442517,1782395444000,-348.27868424,0.00026361,2]
[426442519,1782395444000,-225.05718808,0.00026361,2]
[426442535,1782395444000,-633.16886441,0.00026364,2]
[426442524,1782395444000,-208.71710544,0.00026361,2]
[426442523,1782395444000,-205.71897818,0.00026361,2]
[426442525,1782395444000,-259.1973397,0.00026361,2]
[426442531,1782395444000,-355.06228705,0.00026361,2]
[426442527,1782395444000,-302.07166391,0.00026361,2]
[426442522,1782395444000,-794.86356392,0.00026361,2]
[426442473,1782395444000,-624.85,0.00026027,7]
[426442529,1782395444000,-281.21387189,0.00026361,2]
[426442528,1782395444000,-203.03037623,0.00026361,2]
[426442533,1782395444000,-280.82930452,0.00026361,2]
[426442532,1782395444000,-483.64801,0.00026361,2]
[426442534,1782395444000,-365.43526887,0.00026364,2]
[426442530,1782395444000,-709.71005667,0.00026361,2]
[426442507,1782395444000,-488.71750578,0.00026361,2]
[426442526,1782395444000,-833.74219472,0.00026361,2]
[426442504,1782395444000,-285.92525505,0.00026361,2]
[426442505,1782395444000,-715.07857196,0.00026361,2]
[426442476,1782395444000,-2000.0,0.000262,2]
[426442474,1782395444000,-251.58,0.00026027,2]
[426442477,1782395444000,-26999.74914691,0.00026222,2]
[426442480,1782395444000,-1361.0,0.00026239,2]
[426442490,1782395444000,-604.9501766,0.00026356,2]
[426442491,1782395444000,-402.15966792,0.00026356,2]
[426442479,1782395444000,-3562.0,0.00026239,2]
[426442481,1782395444000,-383.0,0.00026239,2]
[426442482,1782395444000,-1230.0,0.00026239,2]
[426442485,1782395444000,-487.40244705,0.00026356,2]
[426442486,1782395444000,-392.64037979,0.00026356,2]
[426442484,1782395444000,-463.12569333,0.00026356,2]
[426442488,1782395444000,-601.64901978,0.00026356,2]
[426442478,1782395444000,-200.0,0.00026232,2]
[426442483,1782395444000,-692.20971306,0.00026252,2]
[426442487,1782395444000,-434.65303181,0.00026356,2]
[426442495,1782395444000,-363.42995112,0.00026356,2]
[426442498,1782395444000,-198.16311345,0.00026361,2]
[426442502,1782395444000,-230.21285825,0.00026361,2]
[426442496,1782395444000,-458.55746196,0.00026356,2]
[426442501,1782395444000,-951.38354275,0.00026361,2]
[426442494,1782395444000,-418.22247724,0.00026356,2]
[426442489,1782395444000,-554.49425611,0.00026356,2]
[426442503,1782395444000,-229.23931035,0.00026361,2]
[426442492,1782395444000,-400.56304747,0.00026356,2]
[426442497,1782395444000,-742.03208447,0.00026356,2]
[426442500,1782395444000,-731.62921301,0.00026361,2]
[426442493,1782395444000,-572.20122894,0.00026356,2]
[426442550,1782395445000,-618.60860317,0.00026371,2]
[426442546,1782395445000,-224.84111168,0.00026364,2]
[426442555,1782395445000,-475.61386819,0.00026371,2]
[426442545,1782395445000,-729.90964399,0.00026364,2]
[426442551,1782395445000,-577.29015208,0.00026371,2]
[426442554,1782395445000,-270.35660849,0.00026371,2]
[426442552,1782395445000,-467.31993667,0.00026371,2]
[426442548,1782395445000,-451.31812663,0.00026371,2]
[426442547,1782395445000,-325.72128767,0.00026371,2]
[426442549,1782395445000,-394.21048024,0.00026371,2]
[426442544,1782395445000,-473.47452134,0.00026364,2]
[426442538,1782395445000,-333.58090939,0.00026364,2]
[426442540,1782395445000,-163.86654028,0.00026364,2]
[426442541,1782395445000,-371.08699381,0.00026364,2]
[426442539,1782395445000,-211.12821887,0.00026364,2]
[426442537,1782395445000,-515.56407804,0.00026364,2]
[426442542,1782395445000,-265.41337865,0.00026364,2]
[426442536,1782395445000,-185.09018159,0.00026364,2]
[426442543,1782395445000,-352.79304983,0.00026364,2]
[426442561,1782395445000,-6676.8576,0.00026411,2]
[426442553,1782395445000,-454.84997898,0.00026371,2]
[426442560,1782395445000,-20203.91782277,0.000264,2]
[426442572,1782395445000,-540.82864469,0.000267,2]
[426442559,1782395445000,-684.80915221,0.00026371,2]
[426442580,1782395445000,-644.996659,0.000268,2]
[426442579,1782395445000,-5053.34104449,0.000268,2]
[426442574,1782395445000,-1672.09584662,0.000268,2]
[426442578,1782395445000,-82062.1602933,0.000268,2]
[426442576,1782395445000,-11248.55861499,0.000268,2]
[426442575,1782395445000,-2446.14139322,0.000268,2]
[426442577,1782395445000,-711.22046912,0.000268,2]
[426442571,1782395445000,-26999.74914691,0.00026667,2]
[426442557,1782395445000,-231.69620458,0.00026371,2]
[426442569,1782395445000,-350.0,0.00026446,2]
[426442568,1782395445000,-26999.74914691,0.00026444,2]
[426442570,1782395445000,-500.0,0.00026603,2]
[426442566,1782395445000,-439.13851,0.00026444,2]
[426442567,1782395445000,-439.13851,0.00026444,2]
[426442564,1782395445000,-439.13851,0.00026444,2]
[426442565,1782395445000,-439.13851,0.00026444,2]
[426442562,1782395445000,-439.13851,0.00026444,2]
[426442563,1782395445000,-439.13851,0.00026444,2]
[426442556,1782395445000,-259.00349276,0.00026371,2]
[426442558,1782395445000,-310.91461457,0.00026371,2]
[426442573,1782395445000,-172083.13719296,0.000268,2]
[426442589,1782395447000,-157.0,0.00024,2]
[426442590,1782395447000,-166.69497744,0.00025,2]
[426442591,1782395447000,-176.30502256,0.000268,2]
[426442592,1782395447000,-289771.92867094,0.000268,2]
[426442641,1782395447000,-1952.18953704,0.000268,2]
[426442646,1782395447000,-552.70001444,0.000268,2]
[426442638,1782395447000,-2738.78515504,0.000268,2]
[426442648,1782395447000,-533.0,0.000268,2]
[426442644,1782395447000,-2978.63861173,0.000268,2]
[426442699,1782395448000,-2660.0,0.000268,2]
[426442702,1782395448000,-2759.38732185,0.000268,2]
[426442694,1782395448000,-100935.39551753,0.000268,2]
[426442671,1782395448000,-16029.022253,0.000268,2]
[426442683,1782395448000,-590.67,0.000268,2]
[426442676,1782395448000,-2489.2378,0.000268,2]